[Event "*** Titled Tuesday Blitz"]
[Site "Chess.com"]
[Date "2020.05.26"]
[Round "3"]
[White "ClockworkKubrick"]
[Black "Fortitudine"]
[Result "0-1"]
[WhiteElo "2095"]
[BlackElo "2307"]
[TimeControl "180+1"]
[EndTime "10:27:24 PDT"]
[Termination "Fortitudine won by resignation"]

1. e4 {[%clk 0:03:00.9]} 1... c5 {[%clk 0:02:58]} 2. Nf3 {[%clk 0:03:01.1]} 2...
d6 {[%clk 0:02:57.8]} 3. Nc3 {[%clk 0:03:01.8]} 3... Nf6 {[%clk 0:02:57.7]} 4.
Bb5+ {[%clk 0:03:01.7]} 4... Nbd7 {[%clk 0:02:56]} 5. O-O {[%clk 0:03:02.6]}
5... a6 {[%clk 0:02:55.9]} 6. Bxd7+ {[%clk 0:03:02.8]} 6... Bxd7 {[%clk
0:02:56]} 7. d3 {[%clk 0:03:03.7]} 7... e6 {[%clk 0:02:52.5]} 8. h3 {[%clk
0:03:03.9]} 8... Be7 {[%clk 0:02:52.5]} 9. Nh2 {[%clk 0:03:03.8]} 9... b5 {[%clk
0:02:51.1]} 10. f4 {[%clk 0:03:04]} 10... Rc8 {[%clk 0:02:50]} 11. Be3 {[%clk
0:03:01.3]} 11... O-O {[%clk 0:02:49.5]} 12. Rf2 {[%clk 0:02:59.9]} 12... c4
{[%clk 0:02:44]} 13. Qd2 {[%clk 0:02:58.5]} 13... cxd3 {[%clk 0:02:43.6]} 14.
cxd3 {[%clk 0:02:59.4]} 14... Re8 {[%clk 0:02:41]} 15. Raf1 {[%clk 0:02:58.4]}
15... Qc7 {[%clk 0:02:26.9]} 16. a3 {[%clk 0:02:42.4]} 16... a5 {[%clk
0:02:22.5]} 17. Ng4 {[%clk 0:02:27.6]} 17... b4 {[%clk 0:02:13.7]} 18. axb4
{[%clk 0:02:26.8]} 18... axb4 {[%clk 0:02:14.6]} 19. Nd1 {[%clk 0:02:24.3]}
19... Nxg4 {[%clk 0:02:06.3]} 20. hxg4 {[%clk 0:02:23.5]} 20... Bb5 {[%clk
0:01:53.8]} 21. g5 {[%clk 0:02:20]} 21... d5 {[%clk 0:01:41.1]} 22. exd5 {[%clk
0:02:12.5]} 22... exd5 {[%clk 0:01:39.6]} 23. f5 {[%clk 0:02:11.3]} 23... Bd6
{[%clk 0:01:36]} 24. f6 {[%clk 0:02:03.3]} 24... g6 {[%clk 0:01:35.1]} 25. Bf4
{[%clk 0:01:57.8]} 25... Bxf4 {[%clk 0:01:01.8]} 26. Rxf4 {[%clk 0:01:56.9]}
26... Qc2 {[%clk 0:00:56.5]} 27. Qxb4 {[%clk 0:01:24.8]} 27... Bxd3 {[%clk
0:00:47.9]} 28. R4f2 {[%clk 0:01:24.5]} 28... Qc5 {[%clk 0:00:36.4]} 29. Qh4
{[%clk 0:01:14.9]} 29... Bxf1 {[%clk 0:00:31.6]} 30. Kxf1 {[%clk 0:01:12.3]}
30... Qc4+ {[%clk 0:00:26.5]} 31. Qxc4 {[%clk 0:01:04]} 31... Rxc4 {[%clk
0:00:27.1]} 32. Rd2 {[%clk 0:01:02.7]} 32... d4 {[%clk 0:00:25]} 33. Nf2 {[%clk
0:01:02.2]} 33... Rc1+ {[%clk 0:00:20.7]} 34. Nd1 {[%clk 0:01:01.8]} 34... Rc4
{[%clk 0:00:18.4]} 35. Nf2 {[%clk 0:01:02]} 35... Re5 {[%clk 0:00:15.1]} 36. Nh3
{[%clk 0:00:59.7]} 36... h6 {[%clk 0:00:14.8]} 37. gxh6 {[%clk 0:00:58.7]} 37...
Rf5+ {[%clk 0:00:15.4]} 38. Ke2 {[%clk 0:00:59]} 38... Rxf6 {[%clk 0:00:15.7]}
39. Kd3 {[%clk 0:00:59.8]} 39... Rb4 {[%clk 0:00:16]} 40. Ng5 {[%clk 0:00:56.9]}
40... Rf5 {[%clk 0:00:16.3]} 41. Ne4 {[%clk 0:00:56.6]} 41... Kh7 {[%clk
0:00:16.5]} 42. g4 {[%clk 0:00:55.4]} 42... Rf3+ {[%clk 0:00:16.4]} 43. Ke2
{[%clk 0:00:55.2]} 43... Re3+ {[%clk 0:00:17.1]} 44. Kf2 {[%clk 0:00:54.1]}
44... Rxe4 {[%clk 0:00:18]} 45. g5 {[%clk 0:00:54.5]} 45... Rf4+ {[%clk
0:00:17.8]} 46. Kg3 {[%clk 0:00:54.4]} 46... Rf5 {[%clk 0:00:18.5]} 47. Rxd4
{[%clk 0:00:54.9]} 47... Rxd4 {[%clk 0:00:17.9]} 0-1

[Event "*** Titled Tuesday Blitz"]
[Site "Chess.com"]
[Date "2020.05.26"]
[Round "3"]
[White "Blitzstream"]
[Black "wonderfultime"]
[Result "0-1"]
[WhiteElo "2678"]
[BlackElo "2974"]
[TimeControl "180+1"]
[EndTime "10:27:25 PDT"]
[Termination "wonderfultime won by resignation"]

1. d4 {[%clk 0:03:00.9]} 1... d5 {[%clk 0:02:58.8]} 2. Bf4 {[%clk 0:03:01]} 2...
Nf6 {[%clk 0:02:58.8]} 3. e3 {[%clk 0:03:01.5]} 3... e6 {[%clk 0:02:58.5]} 4.
Nf3 {[%clk 0:03:00.7]} 4... Bd6 {[%clk 0:02:58.9]} 5. Bd3 {[%clk 0:03:00.8]}
5... c5 {[%clk 0:02:58.5]} 6. c3 {[%clk 0:03:00.7]} 6... O-O {[%clk 0:02:58.2]}
7. O-O {[%clk 0:03:00.5]} 7... Nc6 {[%clk 0:02:54]} 8. Nbd2 {[%clk 0:02:48.8]}
8... Qc7 {[%clk 0:02:32.9]} 9. Bg5 {[%clk 0:02:35.3]} 9... Nd7 {[%clk
0:02:21.3]} 10. e4 {[%clk 0:02:31.7]} 10... cxd4 {[%clk 0:02:03.9]} 11. cxd4
{[%clk 0:02:31.8]} 11... h6 {[%clk 0:01:52.1]} 12. Bh4 {[%clk 0:02:25.5]} 12...
dxe4 {[%clk 0:01:32.1]} 13. Nxe4 {[%clk 0:02:24.3]} 13... Be7 {[%clk 0:01:32.7]}
14. Bxe7 {[%clk 0:01:48.8]} 14... Nxe7 {[%clk 0:01:33.6]} 15. Rc1 {[%clk
0:01:41.5]} 15... Qb6 {[%clk 0:01:33.8]} 16. Bb1 {[%clk 0:01:39.6]} 16... Nd5
{[%clk 0:01:32.9]} 17. Ne5 {[%clk 0:01:29.3]} 17... N7f6 {[%clk 0:01:30]} 18.
Nxf6+ {[%clk 0:01:10.4]} 18... Nxf6 {[%clk 0:01:30.9]} 19. Rc3 {[%clk
0:01:03.5]} 19... Rd8 {[%clk 0:01:29.2]} 20. Rd3 {[%clk 0:00:59.6]} 20... Bd7
{[%clk 0:01:29.4]} 21. Qf3 {[%clk 0:00:54.5]} 21... Bb5 {[%clk 0:01:17.2]} 22.
Rb3 {[%clk 0:00:49.1]} 22... Qa6 {[%clk 0:01:10]} 23. Re1 {[%clk 0:00:44.4]}
23... Rxd4 {[%clk 0:01:05.8]} 24. h3 {[%clk 0:00:19]} 24... Rad8 {[%clk
0:01:03.8]} 25. Rbe3 {[%clk 0:00:17.8]} 25... Be8 {[%clk 0:00:59.7]} 26. Bc2
{[%clk 0:00:16.3]} 26... Qa5 {[%clk 0:00:22.6]} 27. Bb3 {[%clk 0:00:14.9]} 27...
Nd5 {[%clk 0:00:14.5]} 28. Re4 {[%clk 0:00:12.6]} 28... Rxe4 {[%clk 0:00:14.3]}
29. Qxe4 {[%clk 0:00:13.5]} 29... Nf6 {[%clk 0:00:13.5]} 30. Qf3 {[%clk
0:00:13.3]} 30... Qxe1+ {[%clk 0:00:13.7]} 0-1

[Event "*** Titled Tuesday Blitz"]
[Site "Chess.com"]
[Date "2020.05.26"]
[Round "3"]
[White "Walter_White_Poland"]
[Black "Future2700"]
[Result "0-1"]
[WhiteElo "2196"]
[BlackElo "2426"]
[TimeControl "180+1"]
[EndTime "10:27:26 PDT"]
[Termination "Future2700 won on time"]

1. e4 {[%clk 0:03:00.9]} 1... c5 {[%clk 0:02:59.8]} 2. c4 {[%clk 0:02:59.2]}
2... Nc6 {[%clk 0:02:58.7]} 3. Nc3 {[%clk 0:02:59.1]} 3... e6 {[%clk 0:02:58.8]}
4. g3 {[%clk 0:02:59.2]} 4... Nge7 {[%clk 0:02:56.8]} 5. Bg2 {[%clk 0:02:59.2]}
5... g6 {[%clk 0:02:56.8]} 6. Nge2 {[%clk 0:02:59.1]} 6... Bg7 {[%clk
0:02:57.5]} 7. O-O {[%clk 0:02:59]} 7... O-O {[%clk 0:02:58.3]} 8. d3 {[%clk
0:02:59.4]} 8... d6 {[%clk 0:02:59.1]} 9. Rb1 {[%clk 0:02:58.8]} 9... Nd4 {[%clk
0:02:57]} 10. a3 {[%clk 0:02:45.7]} 10... a5 {[%clk 0:02:55.4]} 11. Nxd4 {[%clk
0:02:43]} 11... cxd4 {[%clk 0:02:37.6]} 12. Ne2 {[%clk 0:02:41.1]} 12... Rb8
{[%clk 0:02:29.6]} 13. b4 {[%clk 0:02:23.9]} 13... axb4 {[%clk 0:02:28.6]} 14.
axb4 {[%clk 0:02:23.9]} 14... b5 {[%clk 0:02:28.7]} 15. cxb5 {[%clk 0:02:22]}
15... Rxb5 {[%clk 0:02:29.6]} 16. Bf4 {[%clk 0:02:11]} 16... Qb6 {[%clk
0:02:28.2]} 17. Qd2 {[%clk 0:02:09.6]} 17... e5 {[%clk 0:02:26.3]} 18. Bh6
{[%clk 0:01:52]} 18... Nc6 {[%clk 0:02:24.7]} 19. Bxg7 {[%clk 0:01:51.3]} 19...
Kxg7 {[%clk 0:02:24.7]} 20. Rb2 {[%clk 0:01:29.5]} 20... Rxb4 {[%clk 0:02:24]}
21. Rfb1 {[%clk 0:01:29.6]} 21... Rxb2 {[%clk 0:02:23]} 22. Rxb2 {[%clk
0:01:29.9]} 22... Qc7 {[%clk 0:02:22.4]} 23. f4 {[%clk 0:01:28.6]} 23... f6
{[%clk 0:02:18.2]} 24. Qc1 {[%clk 0:01:08.8]} 24... Bg4 {[%clk 0:02:15.5]} 25.
h3 {[%clk 0:00:49.5]} 25... Bxe2 {[%clk 0:02:15.2]} 26. Rxe2 {[%clk 0:00:49.6]}
26... Qd7 {[%clk 0:02:04]} 27. Rc2 {[%clk 0:00:35.6]} 27... Rc8 {[%clk
0:02:03.5]} 28. h4 {[%clk 0:00:33.7]} 28... Ne7 {[%clk 0:02:01.8]} 29. Kh2
{[%clk 0:00:33.1]} 29... Rxc2 {[%clk 0:02:01.3]} 30. Qxc2 {[%clk 0:00:33.4]}
30... Qc6 {[%clk 0:02:02]} 31. Qb3 {[%clk 0:00:29.8]} 31... Qd7 {[%clk
0:01:53.8]} 32. Bh3 {[%clk 0:00:27.5]} 32... f5 {[%clk 0:01:50.4]} 33. h5 {[%clk
0:00:25.7]} 33... Kf6 {[%clk 0:01:40.6]} 34. h6 {[%clk 0:00:10.4]} 34... Qc8
{[%clk 0:01:37.5]} 35. Qb6 {[%clk 0:00:05.8]} 35... Nc6 {[%clk 0:01:14.4]} 36.
exf5 {[%clk 0:00:01.9]} 36... gxf5 {[%clk 0:00:55.2]} 37. fxe5+ {[%clk
0:00:02.8]} 37... dxe5 {[%clk 0:00:54.8]} 38. Qc5 {[%clk 0:00:02.9]} 38... Qd7
{[%clk 0:00:53.4]} 39. Bg2 {[%clk 0:00:02.6]} 39... Ne7 {[%clk 0:00:52.8]} 40.
Qb6+ {[%clk 0:00:01.7]} 40... Qe6 {[%clk 0:00:53.1]} 41. Qd8 {[%clk 0:00:01.7]}
41... Qf7 {[%clk 0:00:53.1]} 42. Qd6+ {[%clk 0:00:01.1]} 42... Qe6 {[%clk
0:00:53.5]} 43. Qd8 {[%clk 0:00:01.4]} 43... Kg6 {[%clk 0:00:54.1]} 0-1

[Event "*** Titled Tuesday Blitz"]
[Site "Chess.com"]
[Date "2020.05.26"]
[Round "3"]
[White "FrogMist"]
[Black "Klavdia_Nik"]
[Result "1-0"]
[WhiteElo "2363"]
[BlackElo "2063"]
[TimeControl "180+1"]
[EndTime "10:27:28 PDT"]
[Termination "FrogMist won on time"]

1. e4 {[%clk 0:03:00.9]} 1... e5 {[%clk 0:02:50.5]} 2. Nf3 {[%clk 0:02:59.9]}
2... Nc6 {[%clk 0:02:50.8]} 3. Bb5 {[%clk 0:02:59.8]} 3... a6 {[%clk 0:02:50.3]}
4. Ba4 {[%clk 0:03:00.3]} 4... Nf6 {[%clk 0:02:49.8]} 5. O-O {[%clk 0:03:00.9]}
5... Be7 {[%clk 0:02:49.7]} 6. Re1 {[%clk 0:03:00.4]} 6... b5 {[%clk 0:02:49.7]}
7. Bb3 {[%clk 0:03:00.6]} 7... d6 {[%clk 0:02:49.1]} 8. c3 {[%clk 0:03:00.2]}
8... O-O {[%clk 0:02:49.5]} 9. h3 {[%clk 0:03:00.1]} 9... Bb7 {[%clk 0:02:49.3]}
10. d4 {[%clk 0:02:58.6]} 10... h6 {[%clk 0:02:48.5]} 11. Nbd2 {[%clk
0:02:57.2]} 11... Re8 {[%clk 0:02:47.7]} 12. Bc2 {[%clk 0:02:55.2]} 12... Bf8
{[%clk 0:02:47.2]} 13. Nf1 {[%clk 0:02:52.1]} 13... g6 {[%clk 0:02:47.3]} 14. a4
{[%clk 0:02:51.5]} 14... exd4 {[%clk 0:02:30.5]} 15. cxd4 {[%clk 0:02:49.8]}
15... Nb4 {[%clk 0:02:30.8]} 16. Ng3 {[%clk 0:02:31.7]} 16... Nxc2 {[%clk
0:02:26.6]} 17. Qxc2 {[%clk 0:02:32.6]} 17... c5 {[%clk 0:02:12.7]} 18. Bf4
{[%clk 0:01:58.3]} 18... c4 {[%clk 0:01:57.5]} 19. d5 {[%clk 0:01:42.9]} 19...
Qb6 {[%clk 0:01:46.9]} 20. Be3 {[%clk 0:01:34.4]} 20... Qc7 {[%clk 0:01:46.3]}
21. Bd4 {[%clk 0:01:32.4]} 21... Nd7 {[%clk 0:01:36.8]} 22. axb5 {[%clk
0:01:26.5]} 22... axb5 {[%clk 0:01:36.3]} 23. Bc3 {[%clk 0:01:19.1]} 23... Rxa1
{[%clk 0:01:32.3]} 24. Rxa1 {[%clk 0:01:20]} 24... Nc5 {[%clk 0:01:30.5]} 25.
Nd4 {[%clk 0:01:18.1]} 25... Qd7 {[%clk 0:00:42.2]} 26. Ra5 {[%clk 0:01:10.1]}
26... Ba6 {[%clk 0:00:27.5]} 27. Bb4 {[%clk 0:01:07.4]} 27... Qc7 {[%clk
0:00:24.8]} 28. Nc6 {[%clk 0:01:04.4]} 28... Bb7 {[%clk 0:00:20.4]} 29. Na7
{[%clk 0:01:02.9]} 29... Ba6 {[%clk 0:00:07.3]} 30. Nxb5 {[%clk 0:00:46.6]}
30... Bxb5 {[%clk 0:00:06.4]} 31. Rxb5 {[%clk 0:00:47.5]} 31... Nb3 {[%clk
0:00:04.9]} 32. Bc3 {[%clk 0:00:43.3]} 32... Qd7 {[%clk 0:00:03.7]} 33. Rb4
{[%clk 0:00:41]} 33... Rc8 {[%clk 0:00:01.1]} 34. Qe2 {[%clk 0:00:34.9]} 1-0

[Event "*** Titled Tuesday Blitz"]
[Site "Chess.com"]
[Date "2020.05.26"]
[Round "3"]
[White "mohssenbinaddi"]
[Black "kleopl"]
[Result "0-1"]
[WhiteElo "2186"]
[BlackElo "2416"]
[TimeControl "180+1"]
[EndTime "10:27:30 PDT"]
[Termination "kleopl won by checkmate"]

1. Nf3 {[%clk 0:03:00.9]} 1... f5 {[%clk 0:02:59.3]} 2. g3 {[%clk 0:03:01.8]}
2... Nf6 {[%clk 0:02:58.9]} 3. Bg2 {[%clk 0:03:01.2]} 3... g6 {[%clk 0:02:59]}
4. O-O {[%clk 0:03:00.7]} 4... Bg7 {[%clk 0:02:59.2]} 5. d3 {[%clk 0:03:01.6]}
5... O-O {[%clk 0:02:59.2]} 6. c4 {[%clk 0:03:02.5]} 6... d6 {[%clk 0:02:59.4]}
7. Nc3 {[%clk 0:03:03.3]} 7... e5 {[%clk 0:02:59.2]} 8. e4 {[%clk 0:03:02.4]}
8... Nc6 {[%clk 0:02:56]} 9. Nd5 {[%clk 0:02:54.5]} 9... h6 {[%clk 0:02:53.2]}
10. Nxf6+ {[%clk 0:02:51]} 10... Qxf6 {[%clk 0:02:51.6]} 11. Ne1 {[%clk
0:02:40.5]} 11... f4 {[%clk 0:02:50.7]} 12. b4 {[%clk 0:02:29.6]} 12... Nxb4
{[%clk 0:02:41]} 13. c5 {[%clk 0:02:23.8]} 13... dxc5 {[%clk 0:02:34.8]} 14. Bb2
{[%clk 0:02:17.7]} 14... g5 {[%clk 0:02:29.2]} 15. a3 {[%clk 0:02:12.2]} 15...
Nc6 {[%clk 0:02:26.7]} 16. Qb3+ {[%clk 0:02:11.7]} 16... Kh7 {[%clk 0:02:20.1]}
17. Qb5 {[%clk 0:02:10]} 17... b6 {[%clk 0:02:16.4]} 18. gxf4 {[%clk 0:02:00.2]}
18... gxf4 {[%clk 0:02:15]} 19. Nf3 {[%clk 0:02:00.3]} 19... a6 {[%clk
0:02:03.7]} 20. Qb3 {[%clk 0:01:59.4]} 20... Be6 {[%clk 0:02:00]} 21. Qa4 {[%clk
0:01:56.8]} 21... Bg4 {[%clk 0:01:57.2]} 22. Rfe1 {[%clk 0:01:49.4]} 22... a5
{[%clk 0:01:47.6]} 23. h3 {[%clk 0:01:33.1]} 23... Bxf3 {[%clk 0:01:42.7]} 24.
Bxf3 {[%clk 0:01:32.7]} 24... Rad8 {[%clk 0:01:42.6]} 25. Red1 {[%clk
0:01:21.5]} 25... Qg6+ {[%clk 0:01:38.1]} 26. Kh2 {[%clk 0:01:20.1]} 26... Rd6
{[%clk 0:01:24.1]} 27. Rg1 {[%clk 0:01:15.5]} 27... Qf6 {[%clk 0:01:22.4]} 28.
Rad1 {[%clk 0:01:09.9]} 28... Rfd8 {[%clk 0:01:22.2]} 29. Qc4 {[%clk 0:01:05.2]}
29... Qe6 {[%clk 0:01:14]} 30. Qc1 {[%clk 0:00:55.2]} 30... Rxd3 {[%clk
0:01:07.1]} 31. Rxd3 {[%clk 0:00:47]} 31... Rxd3 {[%clk 0:01:05.6]} 32. Qxf4
{[%clk 0:00:44.9]} 32... Qf6 {[%clk 0:00:52.6]} 33. Qxf6 {[%clk 0:00:38.2]}
33... Bxf6 {[%clk 0:00:53.5]} 34. Bg4 {[%clk 0:00:36.2]} 34... Ne7 {[%clk
0:00:50.4]} 35. Be6 {[%clk 0:00:28.6]} 35... Rd2 {[%clk 0:00:48]} 36. Bc1 {[%clk
0:00:19.7]} 36... Rxf2+ {[%clk 0:00:47.1]} 37. Kg3 {[%clk 0:00:19.7]} 37... Rc2
{[%clk 0:00:46.2]} 38. Kf3 {[%clk 0:00:18.2]} 38... Rc3+ {[%clk 0:00:45]} 39.
Kg4 {[%clk 0:00:16.4]} 39... Kg6 {[%clk 0:00:36.1]} 40. h4 {[%clk 0:00:14.6]}
40... h5# {[%clk 0:00:35.7]} 0-1

[Event "*** Titled Tuesday Blitz"]
[Site "Chess.com"]
[Date "2020.05.26"]
[Round "3"]
[White "DACF2905"]
[Black "WiktoriaPOL"]
[Result "1-0"]
[WhiteElo "2280"]
[BlackElo "1997"]
[TimeControl "180+1"]
[EndTime "10:27:30 PDT"]
[Termination "DACF2905 won on time"]

1. c4 {[%clk 0:03:00.9]} 1... Nf6 {[%clk 0:02:59.4]} 2. Nc3 {[%clk 0:03:00.2]}
2... g6 {[%clk 0:02:59.4]} 3. g3 {[%clk 0:03:00.5]} 3... Bg7 {[%clk 0:02:59.1]}
4. Bg2 {[%clk 0:03:01.1]} 4... O-O {[%clk 0:02:59]} 5. e3 {[%clk 0:03:00.4]}
5... d6 {[%clk 0:02:58.5]} 6. Nge2 {[%clk 0:03:00.5]} 6... e5 {[%clk 0:02:58.2]}
7. O-O {[%clk 0:03:00]} 7... Nc6 {[%clk 0:02:57.8]} 8. d4 {[%clk 0:03:00]} 8...
Re8 {[%clk 0:02:39]} 9. d5 {[%clk 0:02:50.4]} 9... Ne7 {[%clk 0:02:38.5]} 10. e4
{[%clk 0:02:50.4]} 10... Nd7 {[%clk 0:02:37.4]} 11. b4 {[%clk 0:02:49.8]} 11...
f5 {[%clk 0:02:35.5]} 12. f3 {[%clk 0:02:50]} 12... Rf8 {[%clk 0:02:20.7]} 13.
Be3 {[%clk 0:02:49.2]} 13... h6 {[%clk 0:02:19]} 14. Qd2 {[%clk 0:02:48.1]}
14... g5 {[%clk 0:02:17.5]} 15. c5 {[%clk 0:02:43.8]} 15... f4 {[%clk
0:02:15.2]} 16. Bf2 {[%clk 0:02:43.3]} 16... Nf6 {[%clk 0:02:10.6]} 17. Rac1
{[%clk 0:02:42.7]} 17... Ng6 {[%clk 0:02:06.3]} 18. cxd6 {[%clk 0:02:35.6]}
18... cxd6 {[%clk 0:02:03.9]} 19. Nb5 {[%clk 0:02:35.7]} 19... Rf7 {[%clk
0:01:50.3]} 20. Nxa7 {[%clk 0:02:12.6]} 20... Bd7 {[%clk 0:01:47]} 21. b5 {[%clk
0:02:06]} 21... fxg3 {[%clk 0:01:18.6]} 22. hxg3 {[%clk 0:02:06.9]} 22... g4
{[%clk 0:01:05.6]} 23. b6 {[%clk 0:01:53.9]} 23... gxf3 {[%clk 0:01:01.6]} 24.
Bxf3 {[%clk 0:01:54.1]} 24... Kh7 {[%clk 0:00:40.5]} 25. Be3 {[%clk 0:01:19.9]}
25... h5 {[%clk 0:00:18.5]} 26. Rf2 {[%clk 0:01:18.6]} 26... Qf8 {[%clk
0:00:14.8]} 27. Rcf1 {[%clk 0:00:58]} 27... Bg4 {[%clk 0:00:10.3]} 28. Bxg4
{[%clk 0:00:56.1]} 28... hxg4 {[%clk 0:00:08.1]} 29. Nc3 {[%clk 0:00:50]} 29...
Rd8 {[%clk 0:00:03.6]} 30. Bg5 {[%clk 0:00:40.4]} 30... Rdd7 {[%clk 0:00:01.5]}
31. Qe2 {[%clk 0:00:35.8]} 31... Nh5 {[%clk 0:00:01.6]} 32. Qxg4 {[%clk
0:00:34.3]} 32... Rde7 {[%clk 0:00:01.5]} 33. Bxe7 {[%clk 0:00:33.1]} 1-0

[Event "*** Titled Tuesday Blitz"]
[Site "Chess.com"]
[Date "2020.05.26"]
[Round "3"]
[White "druskacik"]
[Black "Fandorine"]
[Result "1/2-1/2"]
[WhiteElo "2577"]
[BlackElo "2892"]
[TimeControl "180+1"]
[EndTime "10:27:31 PDT"]
[Termination "Game drawn by repetition"]

1. e4 {[%clk 0:02:54.1]} 1... c5 {[%clk 0:02:57.6]} 2. Nf3 {[%clk 0:02:53.9]}
2... d6 {[%clk 0:02:57]} 3. d4 {[%clk 0:02:52.8]} 3... cxd4 {[%clk 0:02:57.9]}
4. Nxd4 {[%clk 0:02:53.7]} 4... Nf6 {[%clk 0:02:58.4]} 5. Nc3 {[%clk 0:02:54.4]}
5... a6 {[%clk 0:02:58.8]} 6. Bd3 {[%clk 0:02:55.1]} 6... e5 {[%clk 0:02:54.1]}
7. Nf5 {[%clk 0:02:53.9]} 7... Bxf5 {[%clk 0:02:46.3]} 8. exf5 {[%clk
0:02:54.8]} 8... d5 {[%clk 0:02:46.8]} 9. Bg5 {[%clk 0:02:54.1]} 9... Bb4 {[%clk
0:02:46.6]} 10. O-O {[%clk 0:02:45.8]} 10... Nc6 {[%clk 0:02:38.2]} 11. Bxf6
{[%clk 0:02:25.3]} 11... gxf6 {[%clk 0:02:37]} 12. Qh5 {[%clk 0:02:21.1]} 12...
Bxc3 {[%clk 0:02:24.8]} 13. bxc3 {[%clk 0:02:20.6]} 13... Qc7 {[%clk 0:02:16.9]}
14. Qh6 {[%clk 0:02:11.4]} 14... Qe7 {[%clk 0:02:16.1]} 15. Rab1 {[%clk
0:02:10.3]} 15... O-O-O {[%clk 0:02:06.3]} 16. Rb6 {[%clk 0:02:09.5]} 16... Kc7
{[%clk 0:01:32.9]} 17. Rfb1 {[%clk 0:02:08.6]} 17... Rb8 {[%clk 0:01:33.4]} 18.
h4 {[%clk 0:01:49.6]} 18... Rhg8 {[%clk 0:01:24]} 19. c4 {[%clk 0:01:42.3]}
19... e4 {[%clk 0:01:08.3]} 20. cxd5 {[%clk 0:01:36.8]} 20... exd3 {[%clk
0:00:54.2]} 21. dxc6 {[%clk 0:01:35.6]} 21... Qe4 {[%clk 0:00:48.6]} 22. g3
{[%clk 0:01:19.8]} 22... dxc2 {[%clk 0:00:48.6]} 23. Rxb7+ {[%clk 0:01:08.3]}
23... Rxb7 {[%clk 0:00:48.8]} 24. Rxb7+ {[%clk 0:01:08.9]} 24... Kxc6 {[%clk
0:00:43]} 25. Rxf7 {[%clk 0:01:07.2]} 25... Qe1+ {[%clk 0:00:25.9]} 26. Kg2
{[%clk 0:01:07]} 26... c1=Q {[%clk 0:00:09.3]} 27. Qxf6+ {[%clk 0:01:06.8]}
27... Kb5 {[%clk 0:00:07.6]} 28. Rb7+ {[%clk 0:01:04.7]} 28... Ka5 {[%clk
0:00:08]} 29. Qb6+ {[%clk 0:01:02.4]} 29... Ka4 {[%clk 0:00:07.6]} 30. Qb3+
{[%clk 0:00:25.1]} 30... Ka5 {[%clk 0:00:07.5]} 31. Qb6+ {[%clk 0:00:19.9]}
31... Ka4 {[%clk 0:00:07.8]} 32. Qb3+ {[%clk 0:00:20.8]} 32... Ka5 {[%clk
0:00:08.1]} 33. Qb6+ {[%clk 0:00:21.7]} 1/2-1/2

[Event "*** Titled Tuesday Blitz"]
[Site "Chess.com"]
[Date "2020.05.26"]
[Round "3"]
[White "Rikikits"]
[Black "sergeikim"]
[Result "1-0"]
[WhiteElo "2635"]
[BlackElo "2408"]
[TimeControl "180+1"]
[EndTime "10:27:32 PDT"]
[Termination "Rikikits won by resignation"]

1. e4 {[%clk 0:03:00.9]} 1... e5 {[%clk 0:02:59.4]} 2. Nf3 {[%clk 0:03:00.5]}
2... Nc6 {[%clk 0:02:59.4]} 3. Bb5 {[%clk 0:03:00.3]} 3... a6 {[%clk 0:02:58.4]}
4. Ba4 {[%clk 0:03:00.5]} 4... Nf6 {[%clk 0:02:58.3]} 5. O-O {[%clk 0:03:00.9]}
5... b5 {[%clk 0:02:56.9]} 6. Bb3 {[%clk 0:03:00.6]} 6... Bc5 {[%clk 0:02:56.9]}
7. c4 {[%clk 0:02:59.9]} 7... d6 {[%clk 0:02:43.6]} 8. h3 {[%clk 0:02:59.5]}
8... O-O {[%clk 0:02:41.8]} 9. d3 {[%clk 0:02:58.2]} 9... h6 {[%clk 0:02:40.5]}
10. Nc3 {[%clk 0:02:58.2]} 10... b4 {[%clk 0:02:35.6]} 11. Nd5 {[%clk
0:02:53.9]} 11... Nxd5 {[%clk 0:02:33.5]} 12. cxd5 {[%clk 0:02:54.8]} 12... Ne7
{[%clk 0:02:33.3]} 13. d4 {[%clk 0:02:53.1]} 13... exd4 {[%clk 0:02:32.4]} 14.
Nxd4 {[%clk 0:02:54]} 14... Ng6 {[%clk 0:02:25.7]} 15. Be3 {[%clk 0:02:46.8]}
15... Qh4 {[%clk 0:02:19.6]} 16. Qc2 {[%clk 0:02:00.2]} 16... Re8 {[%clk
0:01:49.2]} 17. f3 {[%clk 0:01:59.7]} 17... a5 {[%clk 0:01:42.4]} 18. Ba4 {[%clk
0:01:57.7]} 18... Re5 {[%clk 0:01:36.1]} 19. Qf2 {[%clk 0:01:57.1]} 19... Qxf2+
{[%clk 0:01:22]} 20. Kxf2 {[%clk 0:01:58]} 20... Bb7 {[%clk 0:01:12.7]} 21. Nc6
{[%clk 0:01:52.3]} 21... Bxe3+ {[%clk 0:01:06.4]} 22. Kxe3 {[%clk 0:01:51.8]}
22... Bxc6 {[%clk 0:01:02.2]} 23. Bxc6 {[%clk 0:01:52.7]} 23... Rb8 {[%clk
0:01:02.2]} 24. f4 {[%clk 0:01:50.7]} 24... Re7 {[%clk 0:01:01.3]} 25. Kd4
{[%clk 0:01:50.6]} 25... Rf8 {[%clk 0:00:49.9]} 26. Rae1 {[%clk 0:01:48.2]}
26... Nh4 {[%clk 0:00:46.6]} 27. g3 {[%clk 0:01:44.6]} 27... Ng6 {[%clk
0:00:46.2]} 28. h4 {[%clk 0:01:43.9]} 28... h5 {[%clk 0:00:44.2]} 29. Re3 {[%clk
0:01:41.4]} 29... f6 {[%clk 0:00:27.1]} 30. Rfe1 {[%clk 0:01:39.1]} 30... Kf7
{[%clk 0:00:24.8]} 31. Kc4 {[%clk 0:01:37.8]} 31... Rb8 {[%clk 0:00:23.7]} 32.
Kb3 {[%clk 0:01:33.5]} 32... Rb6 {[%clk 0:00:23.2]} 33. Ka4 {[%clk 0:01:33.2]}
33... Nf8 {[%clk 0:00:16.2]} 34. Kxa5 {[%clk 0:01:30.6]} 34... Nd7 {[%clk
0:00:16.7]} 35. Bxd7 {[%clk 0:01:22.9]} 35... Rxd7 {[%clk 0:00:16.3]} 36. Ka4
{[%clk 0:01:23.8]} 36... Rd8 {[%clk 0:00:15.9]} 37. Kb3 {[%clk 0:01:23.8]} 37...
Ra8 {[%clk 0:00:15.5]} 38. Rc1 {[%clk 0:01:23.1]} 38... Ra7 {[%clk 0:00:14.8]}
39. Re2 {[%clk 0:01:18.9]} 39... Rba6 {[%clk 0:00:14.4]} 40. Rec2 {[%clk
0:01:18.9]} 40... Rxa2 {[%clk 0:00:14.1]} 41. Rxc7+ {[%clk 0:01:18.9]} 41... Kg6
{[%clk 0:00:14.3]} 42. Rxa7 {[%clk 0:01:15.6]} 42... Rxa7 {[%clk 0:00:15.2]} 43.
Kxb4 {[%clk 0:01:15.6]} 43... Rb7+ {[%clk 0:00:12.5]} 44. Kc3 {[%clk 0:01:14.9]}
44... Rc7+ {[%clk 0:00:12.4]} 45. Kd2 {[%clk 0:01:15.3]} 45... Rb7 {[%clk
0:00:12.6]} 46. Rb1 {[%clk 0:01:14.9]} 46... Rb4 {[%clk 0:00:11.6]} 47. Kd3
{[%clk 0:01:06.4]} 47... Rb3+ {[%clk 0:00:11.5]} 48. Kc4 {[%clk 0:01:06.2]}
48... Rxg3 {[%clk 0:00:11]} 49. b4 {[%clk 0:01:06.7]} 49... Re3 {[%clk 0:00:09]}
50. Kd4 {[%clk 0:01:06.4]} 1-0